[Event "Early-Titled-Tuesday-Blitz-March-12-2024"]
[Site "Chess.com"]
[Date "2024.03.12"]
[Round "5"]
[White "PabloZarnicki"]
[Black "Vladimir_Zakhartsov"]
[Result "1/2-1/2"]
[WhiteElo "2604"]
[BlackElo "2854"]
[TimeControl "180+1"]
[EndTime "8:57:10 PDT"]
[Termination "Game drawn by stalemate"]

1. e4 {[%clk 0:03:00.4]} 1... e6 {[%clk 0:02:59.3]} 2. d4 {[%clk 0:02:57.5]}
2... d5 {[%clk 0:02:59.6]} 3. exd5 {[%clk 0:02:58.4]} 3... exd5 {[%clk
0:02:59.6]} 4. Nf3 {[%clk 0:02:58.7]} 4... Nc6 {[%clk 0:02:59.4]} 5. Bb5 {[%clk
0:02:57.4]} 5... Bd6 {[%clk 0:02:57.9]} 6. c4 {[%clk 0:02:55.5]} 6... dxc4
{[%clk 0:02:57.2]} 7. d5 {[%clk 0:02:55.9]} 7... a6 {[%clk 0:02:57.4]} 8. Ba4
{[%clk 0:02:55.2]} 8... b5 {[%clk 0:02:56.2]} 9. dxc6 {[%clk 0:02:55.2]} 9...
bxa4 {[%clk 0:02:55.4]} 10. O-O {[%clk 0:02:56.1]} 10... Ne7 {[%clk 0:02:46.4]}
11. Qxa4 {[%clk 0:02:56.1]} 11... Be6 {[%clk 0:02:43.1]} 12. Ng5 {[%clk
0:02:50.9]} 12... Bd5 {[%clk 0:02:42.5]} 13. Nc3 {[%clk 0:02:50.7]} 13... Bxc6
{[%clk 0:02:38.5]} 14. Qxc4 {[%clk 0:02:50.1]} 14... O-O {[%clk 0:02:38.7]} 15.
Bf4 {[%clk 0:02:47.4]} 15... h6 {[%clk 0:02:31.7]} 16. Bxd6 {[%clk 0:02:47.2]}
16... Qxd6 {[%clk 0:02:26.5]} 17. Nge4 {[%clk 0:02:34.1]} 17... Qg6 {[%clk
0:02:26.4]} 18. f3 {[%clk 0:02:33.9]} 18... Nf5 {[%clk 0:02:24.8]} 19. Qc5
{[%clk 0:02:21.9]} 19... Rad8 {[%clk 0:02:15.9]} 20. Rad1 {[%clk 0:02:17]} 20...
Nh4 {[%clk 0:02:03]} 21. Ng3 {[%clk 0:02:08]} 21... Qc2 {[%clk 0:01:25.8]} 22.
Qf2 {[%clk 0:02:05.3]} 22... Qg6 {[%clk 0:01:22.3]} 23. Nge4 {[%clk 0:01:41.6]}
23... Nf5 {[%clk 0:01:13.5]} 24. Ng3 {[%clk 0:01:41.7]} 24... Nd6 {[%clk
0:00:51.2]} 25. Rd4 {[%clk 0:01:37]} 25... f5 {[%clk 0:00:50.2]} 26. Rfd1 {[%clk
0:01:30.3]} 26... Kh7 {[%clk 0:00:49.9]} 27. Nge2 {[%clk 0:01:18]} 27... Qf6
{[%clk 0:00:48.6]} 28. Nf4 {[%clk 0:01:11.8]} 28... Rde8 {[%clk 0:00:48.1]} 29.
Ncd5 {[%clk 0:01:10]} 29... Bxd5 {[%clk 0:00:47.8]} 30. Nxd5 {[%clk 0:01:09.8]}
30... Qf7 {[%clk 0:00:48.3]} 31. Nxc7 {[%clk 0:01:05.9]} 31... Qxc7 {[%clk
0:00:49.2]} 32. Rxd6 {[%clk 0:01:06]} 32... Re7 {[%clk 0:00:46.5]} 33. h3 {[%clk
0:01:03.4]} 33... Rfe8 {[%clk 0:00:46.5]} 34. Qg3 {[%clk 0:00:58.3]} 34... Qc2
{[%clk 0:00:39.1]} 35. Qg6+ {[%clk 0:00:57.8]} 35... Kg8 {[%clk 0:00:28.5]} 36.
Rd8 {[%clk 0:00:51.3]} 36... Qc5+ {[%clk 0:00:27.2]} 37. Kh1 {[%clk 0:00:43.3]}
37... Qb5 {[%clk 0:00:22.5]} 38. Rxe8+ {[%clk 0:00:38.7]} 38... Rxe8 {[%clk
0:00:22.6]} 39. f4 {[%clk 0:00:30.4]} 39... Rf8 {[%clk 0:00:22.4]} 40. Rd6
{[%clk 0:00:21.4]} 40... Qxb2 {[%clk 0:00:20.8]} 41. Re6 {[%clk 0:00:19]} 41...
Qc1+ {[%clk 0:00:20.1]} 42. Kh2 {[%clk 0:00:18.9]} 42... Qxf4+ {[%clk
0:00:20.5]} 43. Qg3 {[%clk 0:00:19.1]} 43... Qc4 {[%clk 0:00:08.4]} 44. Qg6
{[%clk 0:00:13.6]} 44... Qc7+ {[%clk 0:00:07.2]} 45. Qg3 {[%clk 0:00:11.2]}
45... Qf7 {[%clk 0:00:05.6]} 46. Rxa6 {[%clk 0:00:08.5]} 46... f4 {[%clk
0:00:05.9]} 47. Qf3 {[%clk 0:00:08.8]} 47... Qf5 {[%clk 0:00:05.5]} 48. Rd6
{[%clk 0:00:06]} 48... Kh7 {[%clk 0:00:05.5]} 49. Qd3 {[%clk 0:00:05.5]} 49...
Qxd3 {[%clk 0:00:05.6]} 50. Rxd3 {[%clk 0:00:06.4]} 50... Ra8 {[%clk 0:00:06]}
51. a3 {[%clk 0:00:07]} 51... Ra6 {[%clk 0:00:06]} 52. h4 {[%clk 0:00:07.2]}
52... Kg6 {[%clk 0:00:06.1]} 53. Kh3 {[%clk 0:00:04.5]} 53... Kf5 {[%clk
0:00:06.2]} 54. h5 {[%clk 0:00:05]} 54... Kg5 {[%clk 0:00:05.8]} 55. Rd5+ {[%clk
0:00:04.7]} 55... Kf6 {[%clk 0:00:05.6]} 56. Rd3 {[%clk 0:00:05.3]} 56... Ke5
{[%clk 0:00:05.6]} 57. Kg4 {[%clk 0:00:04.7]} 57... Ke4 {[%clk 0:00:04.4]} 58.
Rd7 {[%clk 0:00:04.6]} 58... g6 {[%clk 0:00:03.7]} 59. Re7+ {[%clk 0:00:04.7]}
59... Kd5 {[%clk 0:00:04]} 60. Kxf4 {[%clk 0:00:03.8]} 60... gxh5 {[%clk
0:00:03.7]} 61. Re5+ {[%clk 0:00:04.1]} 61... Kd4 {[%clk 0:00:03.9]} 62. Rxh5
{[%clk 0:00:04.1]} 62... Rf6+ {[%clk 0:00:03.9]} 63. Kg3 {[%clk 0:00:03]} 63...
Ra6 {[%clk 0:00:03.4]} 64. a4 {[%clk 0:00:03.9]} 64... Ke4 {[%clk 0:00:02.2]}
65. Rh4+ {[%clk 0:00:04.3]} 65... Kf5 {[%clk 0:00:02]} 66. Rb4 {[%clk 0:00:05]}
66... Kg6 {[%clk 0:00:02.1]} 67. Kf3 {[%clk 0:00:05.4]} 67... Ra5 {[%clk
0:00:02.5]} 68. g4 {[%clk 0:00:05.5]} 68... h5 {[%clk 0:00:02.2]} 69. Rb6+
{[%clk 0:00:05.6]} 69... Kf7 {[%clk 0:00:02.6]} 70. gxh5 {[%clk 0:00:05]} 70...
Rxh5 {[%clk 0:00:03.5]} 71. Rb4 {[%clk 0:00:04.5]} 71... Ke7 {[%clk 0:00:03.8]}
72. Rd4 {[%clk 0:00:04.7]} 72... Ke6 {[%clk 0:00:03.6]} 73. Ke3 {[%clk
0:00:05.6]} 73... Rd5 {[%clk 0:00:03.7]} 74. Re4+ {[%clk 0:00:04.1]} 74... Kd6
{[%clk 0:00:04]} 75. Rc4 {[%clk 0:00:04.4]} 75... Rc5 {[%clk 0:00:04.3]} 76. Rb4
{[%clk 0:00:03.9]} 76... Kc6 {[%clk 0:00:04.7]} 77. Kd4 {[%clk 0:00:04.3]} 77...
Rh5 {[%clk 0:00:05.2]} 78. Kc4 {[%clk 0:00:04.2]} 78... Rh4+ {[%clk 0:00:05.7]}
79. Kb3 {[%clk 0:00:05.1]} 79... Rxb4+ {[%clk 0:00:06]} 80. Kxb4 {[%clk
0:00:05.7]} 80... Kb7 {[%clk 0:00:06.9]} 81. a5 {[%clk 0:00:06.3]} 81... Ka8
{[%clk 0:00:07.8]} 82. Kb5 {[%clk 0:00:06.9]} 82... Kb8 {[%clk 0:00:08.7]} 83.
Kb6 {[%clk 0:00:07.5]} 83... Ka8 {[%clk 0:00:09.6]} 84. a6 {[%clk 0:00:08.3]}
84... Kb8 {[%clk 0:00:10.5]} 85. a7+ {[%clk 0:00:09.2]} 85... Ka8 {[%clk
0:00:11.4]} 86. Ka6 {[%clk 0:00:09.5]} 1/2-1/2

[Event "Early-Titled-Tuesday-Blitz-March-12-2024"]
[Site "Chess.com"]
[Date "2024.03.12"]
[Round "5"]
[White "Danny_Billiards"]
[Black "platy3"]
[Result "1/2-1/2"]
[WhiteElo "2800"]
[BlackElo "2943"]
[TimeControl "180+1"]
[EndTime "8:57:58 PDT"]
[Termination "Game drawn - insufficient material"]

1. d4 {[%clk 0:03:00.9]} 1... Nf6 {[%clk 0:02:59.7]} 2. Nc3 {[%clk 0:02:59.9]}
2... d5 {[%clk 0:02:59.4]} 3. Bf4 {[%clk 0:02:59.7]} 3... c5 {[%clk 0:03:00.1]}
4. e3 {[%clk 0:02:59.2]} 4... cxd4 {[%clk 0:03:00.8]} 5. exd4 {[%clk 0:03:00.1]}
5... a6 {[%clk 0:03:01.3]} 6. Nf3 {[%clk 0:02:57.9]} 6... Nc6 {[%clk 0:03:01.8]}
7. Ne5 {[%clk 0:02:57.8]} 7... Bd7 {[%clk 0:03:02.3]} 8. Ne2 {[%clk 0:02:55.3]}
8... g6 {[%clk 0:02:53.2]} 9. Nxd7 {[%clk 0:02:46.8]} 9... Qxd7 {[%clk
0:02:52.8]} 10. c3 {[%clk 0:02:46.7]} 10... Bg7 {[%clk 0:02:52.1]} 11. Nc1
{[%clk 0:02:46.4]} 11... O-O {[%clk 0:02:45.3]} 12. Be2 {[%clk 0:02:45.8]} 12...
e6 {[%clk 0:02:37]} 13. O-O {[%clk 0:02:45.2]} 13... Ne4 {[%clk 0:02:35.6]} 14.
Nd3 {[%clk 0:02:43]} 14... Rfc8 {[%clk 0:02:29.6]} 15. Bf3 {[%clk 0:02:34.7]}
15... Nd6 {[%clk 0:02:28.2]} 16. Qe2 {[%clk 0:02:25.3]} 16... b6 {[%clk
0:02:24.9]} 17. h4 {[%clk 0:02:21.3]} 17... h6 {[%clk 0:02:14.9]} 18. Bg4 {[%clk
0:02:14.2]} 18... Nf5 {[%clk 0:02:08.2]} 19. h5 {[%clk 0:01:58.3]} 19... g5
{[%clk 0:02:07]} 20. Bd2 {[%clk 0:01:52.5]} 20... Nce7 {[%clk 0:02:02.6]} 21.
Ne5 {[%clk 0:01:47.1]} 21... Qb5 {[%clk 0:02:00.8]} 22. Qxb5 {[%clk 0:01:31.8]}
22... axb5 {[%clk 0:02:01.7]} 23. a3 {[%clk 0:01:32.1]} 23... Nd6 {[%clk
0:02:01.4]} 24. f4 {[%clk 0:01:29.2]} 24... Ne4 {[%clk 0:01:57.5]} 25. Bc1
{[%clk 0:01:26.5]} 25... f5 {[%clk 0:01:51.4]} 26. Be2 {[%clk 0:01:17.6]} 26...
Bxe5 {[%clk 0:01:51.6]} 27. dxe5 {[%clk 0:01:04.8]} 27... Ng3 {[%clk 0:01:02.4]}
28. Re1 {[%clk 0:01:04.8]} 28... Nxe2+ {[%clk 0:01:02.6]} 29. Rxe2 {[%clk
0:01:05.7]} 29... gxf4 {[%clk 0:01:02.7]} 30. Bxf4 {[%clk 0:01:06.6]} 30... Kh7
{[%clk 0:01:02.7]} 31. Be3 {[%clk 0:01:01.4]} 31... Rab8 {[%clk 0:00:54.5]} 32.
Rf1 {[%clk 0:00:56.2]} 32... Rg8 {[%clk 0:00:53.6]} 33. Rf4 {[%clk 0:00:56.2]}
33... Nc6 {[%clk 0:00:53.6]} 34. Bf2 {[%clk 0:00:54.2]} 34... Rg5 {[%clk
0:00:52.7]} 35. a4 {[%clk 0:00:48.9]} 35... bxa4 {[%clk 0:00:40.3]} 36. Rxa4
{[%clk 0:00:49.8]} 36... Rxh5 {[%clk 0:00:40.9]} 37. Ra6 {[%clk 0:00:49.6]}
37... f4 {[%clk 0:00:38.9]} 38. Bxb6 {[%clk 0:00:45.4]} 38... Rc8 {[%clk
0:00:21.6]} 39. Bd4 {[%clk 0:00:34.3]} 39... Kg6 {[%clk 0:00:18.6]} 40. Bc5
{[%clk 0:00:19.5]} 40... Kf5 {[%clk 0:00:17.8]} 41. Bd6 {[%clk 0:00:20.1]} 41...
d4 {[%clk 0:00:17.6]} 42. Rd2 {[%clk 0:00:19.5]} 42... dxc3 {[%clk 0:00:10.5]}
43. bxc3 {[%clk 0:00:20.4]} 43... Rg5 {[%clk 0:00:07.3]} 44. Kf2 {[%clk
0:00:18.5]} 44... Rcg8 {[%clk 0:00:05.2]} 45. Kf1 {[%clk 0:00:17.6]} 45... Rc8
{[%clk 0:00:02.4]} 46. Re2 {[%clk 0:00:16.6]} 46... h5 {[%clk 0:00:02.9]} 47.
Ra4 {[%clk 0:00:14.5]} 47... Rg3 {[%clk 0:00:02.9]} 48. Rf2 {[%clk 0:00:14.6]}
48... Rg4 {[%clk 0:00:03.5]} 49. g3 {[%clk 0:00:14.6]} 49... Rxg3 {[%clk
0:00:03.4]} 50. Raxf4+ {[%clk 0:00:11.8]} 50... Kg5 {[%clk 0:00:04.3]} 51. Rf6
{[%clk 0:00:12.7]} 51... Rxc3 {[%clk 0:00:04.3]} 52. Rg2+ {[%clk 0:00:11.3]}
52... Kh4 {[%clk 0:00:04.9]} 53. Kg1 {[%clk 0:00:09.5]} 53... Rg3 {[%clk
0:00:03.8]} 54. Rxe6 {[%clk 0:00:06.4]} 54... Nd4 {[%clk 0:00:03.7]} 55. Rxg3
{[%clk 0:00:06.2]} 55... Kxg3 {[%clk 0:00:04.1]} 56. Rg6+ {[%clk 0:00:06.6]}
56... Kf3 {[%clk 0:00:04.6]} 57. e6 {[%clk 0:00:05.9]} 57... Re8 {[%clk
0:00:03.3]} 58. e7 {[%clk 0:00:06]} 58... Nf5 {[%clk 0:00:03.8]} 59. Rf6 {[%clk
0:00:06.2]} 59... Kg4 {[%clk 0:00:03.5]} 60. Ba3 {[%clk 0:00:06.2]} 60... Kg5
{[%clk 0:00:03.6]} 61. Rf8 {[%clk 0:00:06.2]} 61... Rxe7 {[%clk 0:00:02]} 62.
Bxe7+ {[%clk 0:00:06.5]} 62... Nxe7 {[%clk 0:00:02.9]} 63. Kh2 {[%clk 0:00:07]}
63... Ng6 {[%clk 0:00:03.3]} 64. Rg8 {[%clk 0:00:07.4]} 64... Kf5 {[%clk
0:00:03.4]} 65. Kh3 {[%clk 0:00:07.5]} 65... Kg5 {[%clk 0:00:03.9]} 66. Kg3
{[%clk 0:00:07.6]} 66... Kf5 {[%clk 0:00:03.8]} 67. Ra8 {[%clk 0:00:07.8]} 67...
h4+ {[%clk 0:00:03.8]} 68. Kh3 {[%clk 0:00:08]} 68... Kg5 {[%clk 0:00:04.3]} 69.
Ra5+ {[%clk 0:00:08.6]} 69... Kf6 {[%clk 0:00:04.8]} 70. Kg4 {[%clk 0:00:09.5]}
70... Ne5+ {[%clk 0:00:04.8]} 71. Kxh4 {[%clk 0:00:09.7]} 71... Nf3+ {[%clk
0:00:05.4]} 72. Kg3 {[%clk 0:00:10.2]} 72... Nd4 {[%clk 0:00:06.3]} 73. Kf4
{[%clk 0:00:11]} 73... Ne6+ {[%clk 0:00:06.5]} 74. Ke4 {[%clk 0:00:11.6]} 74...
Ng5+ {[%clk 0:00:07.1]} 75. Kd5 {[%clk 0:00:11.7]} 75... Kf5 {[%clk 0:00:07.3]}
76. Ra1 {[%clk 0:00:12.6]} 76... Ne6 {[%clk 0:00:05]} 77. Rf1+ {[%clk
0:00:10.2]} 77... Nf4+ {[%clk 0:00:05.4]} 78. Kd4 {[%clk 0:00:11.1]} 78... Kg5
{[%clk 0:00:05.3]} 79. Ke4 {[%clk 0:00:11]} 79... Ng6 {[%clk 0:00:05.6]} 80.
Rg1+ {[%clk 0:00:11.3]} 80... Kf6 {[%clk 0:00:06]} 81. Rg4 {[%clk 0:00:10.5]}
81... Ne7 {[%clk 0:00:06.1]} 82. Rf4+ {[%clk 0:00:10.7]} 82... Ke6 {[%clk
0:00:06.6]} 83. Rh4 {[%clk 0:00:10.7]} 83... Nf5 {[%clk 0:00:05.9]} 84. Rg4
{[%clk 0:00:09.8]} 84... Nd6+ {[%clk 0:00:06.2]} 85. Kf4 {[%clk 0:00:10.4]}
85... Kd5 {[%clk 0:00:04.9]} 86. Rg5+ {[%clk 0:00:10.9]} 86... Kd4 {[%clk
0:00:05.1]} 87. Rg8 {[%clk 0:00:11.1]} 87... Nc4 {[%clk 0:00:05.1]} 88. Rd8+
{[%clk 0:00:11.3]} 88... Kc5 {[%clk 0:00:05.6]} 89. Ke4 {[%clk 0:00:11.9]} 89...
Nd6+ {[%clk 0:00:06.1]} 90. Kd3 {[%clk 0:00:12.3]} 90... Nb5 {[%clk 0:00:05.2]}
91. Rc8+ {[%clk 0:00:12.2]} 91... Kd5 {[%clk 0:00:05.7]} 92. Rh8 {[%clk
0:00:11.6]} 92... Nd6 {[%clk 0:00:06.3]} 93. Rh5+ {[%clk 0:00:12.3]} 93... Kc6
{[%clk 0:00:06.9]} 94. Kd4 {[%clk 0:00:13]} 94... Nb5+ {[%clk 0:00:07.3]} 95.
Ke5 {[%clk 0:00:13.5]} 95... Kc5 {[%clk 0:00:07.7]} 96. Rh1 {[%clk 0:00:14]}
96... Nc3 {[%clk 0:00:07]} 97. Rc1 {[%clk 0:00:14.1]} 97... Kc4 {[%clk
0:00:07.6]} 98. Rh1 {[%clk 0:00:13.4]} 98... Kd3 {[%clk 0:00:07.9]} 99. Rh3+
{[%clk 0:00:14.1]} 99... Kc4 {[%clk 0:00:08.7]} 100. Rg3 {[%clk 0:00:13.7]}
100... Kb4 {[%clk 0:00:06.8]} 101. Kd4 {[%clk 0:00:13.5]} 101... Ne2+ {[%clk
0:00:07]} 102. Kd3 {[%clk 0:00:13.2]} 102... Nxg3 {[%clk 0:00:07.9]} 1/2-1/2

[Event "Early-Titled-Tuesday-Blitz-March-12-2024"]
[Site "Chess.com"]
[Date "2024.03.12"]
[Round "6"]
[White "Dyadya81"]
[Black "Hanging_pointer"]
[Result "1-0"]
[WhiteElo "2921"]
[BlackElo "2705"]
[TimeControl "180+1"]
[EndTime "9:00:36 PDT"]
[Termination "Dyadya81 won by resignation"]

1. e4 {[%clk 0:03:00.9]} 1... c6 {[%clk 0:02:59.8]} 2. d3 {[%clk 0:03:00.6]}
2... d5 {[%clk 0:03:00.7]} 3. Nf3 {[%clk 0:03:01.3]} 3... Bg4 {[%clk 0:03:00.1]}
4. h3 {[%clk 0:03:01.1]} 4... Bxf3 {[%clk 0:02:59.9]} 5. Qxf3 {[%clk 0:03:01.1]}
5... e6 {[%clk 0:03:00.8]} 6. g3 {[%clk 0:03:00.3]} 6... Nf6 {[%clk 0:02:57.5]}
7. Nd2 {[%clk 0:02:59.9]} 7... Be7 {[%clk 0:02:58.1]} 8. Bg2 {[%clk 0:03:00]}
8... O-O {[%clk 0:02:57.5]} 9. Qe2 {[%clk 0:03:00.4]} 9... dxe4 {[%clk
0:02:54.6]} 10. dxe4 {[%clk 0:02:59.6]} 10... Nbd7 {[%clk 0:02:54.9]} 11. O-O
{[%clk 0:02:53.1]} 11... Qc7 {[%clk 0:02:54.9]} 12. c3 {[%clk 0:02:31.1]} 12...
a5 {[%clk 0:02:53.9]} 13. Nc4 {[%clk 0:02:27.6]} 13... Nb6 {[%clk 0:02:51.8]}
14. Bf4 {[%clk 0:02:26.7]} 14... Qd8 {[%clk 0:02:49.1]} 15. Rad1 {[%clk
0:02:23.3]} 1-0

[Event "Early-Titled-Tuesday-Blitz-March-12-2024"]
[Site "Chess.com"]
[Date "2024.03.12"]
[Round "6"]
[White "HajiyevKanan"]
[Black "amylazy"]
[Result "1-0"]
[WhiteElo "2577"]
[BlackElo "2416"]
[TimeControl "180+1"]
[EndTime "9:01:24 PDT"]
[Termination "HajiyevKanan won by resignation"]

1. d4 {[%clk 0:03:00.9]} 1... Nf6 {[%clk 0:02:56]} 2. Nf3 {[%clk 0:03:01.8]}
2... g6 {[%clk 0:02:55.3]} 3. c4 {[%clk 0:03:02.7]} 3... Bg7 {[%clk 0:02:54.8]}
4. Nc3 {[%clk 0:03:03.6]} 4... d5 {[%clk 0:02:55]} 5. cxd5 {[%clk 0:03:03.2]}
5... Nxd5 {[%clk 0:02:55.9]} 6. e4 {[%clk 0:03:03.8]} 6... Nxc3 {[%clk
0:02:56.4]} 7. bxc3 {[%clk 0:03:04.7]} 7... c5 {[%clk 0:02:57]} 8. Bc4 {[%clk
0:03:03.6]} 8... Nc6 {[%clk 0:02:57.1]} 9. O-O {[%clk 0:02:58.9]} 9... cxd4
{[%clk 0:02:52.2]} 10. cxd4 {[%clk 0:02:56.3]} 10... O-O {[%clk 0:02:50.7]} 11.
Be3 {[%clk 0:02:53.2]} 11... Bg4 {[%clk 0:02:50.2]} 12. e5 {[%clk 0:02:53.8]}
12... Bxf3 {[%clk 0:02:48.3]} 13. Qxf3 {[%clk 0:02:53.7]} 13... Nxd4 {[%clk
0:02:48.1]} 14. Qe4 {[%clk 0:02:40.6]} 14... Nc6 {[%clk 0:02:42]} 15. e6 {[%clk
0:02:38.6]} 15... f5 {[%clk 0:02:38.8]} 16. Qh4 {[%clk 0:02:29.8]} 16... Ne5
{[%clk 0:02:37.6]} 17. Rad1 {[%clk 0:02:24]} 17... Qc7 {[%clk 0:02:36.9]} 18.
Bb3 {[%clk 0:02:04.6]} 18... Rad8 {[%clk 0:02:34.6]} 19. Rc1 {[%clk 0:02:03.2]}
19... Qd6 {[%clk 0:02:34.8]} 20. Rfd1 {[%clk 0:01:51.9]} 20... Qd7 {[%clk
0:02:34.8]} 21. exd7+ {[%clk 0:01:37]} 1-0

[Event "Early-Titled-Tuesday-Blitz-March-12-2024"]
[Site "Chess.com"]
[Date "2024.03.12"]
[Round "6"]
[White "Sychev_on_YouTube"]
[Black "Matibar"]
[Result "1-0"]
[WhiteElo "2921"]
[BlackElo "2759"]
[TimeControl "180+1"]
[EndTime "9:02:34 PDT"]
[Termination "Sychev_on_YouTube won by resignation"]

1. e4 {[%clk 0:03:00.9]} 1... c5 {[%clk 0:02:57.3]} 2. Nf3 {[%clk 0:03:00.6]}
2... a6 {[%clk 0:02:57.8]} 3. c3 {[%clk 0:03:00.3]} 3... e6 {[%clk 0:02:57]} 4.
d4 {[%clk 0:02:56.6]} 4... d5 {[%clk 0:02:57]} 5. e5 {[%clk 0:02:57.1]} 5... Bd7
{[%clk 0:02:56.7]} 6. Bd3 {[%clk 0:02:57]} 6... Bb5 {[%clk 0:02:56.6]} 7. Bc2
{[%clk 0:02:57.3]} 7... a5 {[%clk 0:02:50.5]} 8. a4 {[%clk 0:02:48.3]} 8... Ba6
{[%clk 0:02:50.2]} 9. Na3 {[%clk 0:02:49]} 9... Nc6 {[%clk 0:02:43.2]} 10. Nb5
{[%clk 0:02:47.9]} 10... cxd4 {[%clk 0:02:43.3]} 11. cxd4 {[%clk 0:02:43]} 11...
Bb4+ {[%clk 0:02:39]} 12. Bd2 {[%clk 0:02:42.7]} 12... Bxd2+ {[%clk 0:02:38.8]}
13. Qxd2 {[%clk 0:02:42]} 13... Bxb5 {[%clk 0:02:38.9]} 14. axb5 {[%clk
0:02:41.3]} 14... Nb4 {[%clk 0:02:39.8]} 15. Bb1 {[%clk 0:02:13.5]} 15... Ne7
{[%clk 0:02:34.3]} 16. O-O {[%clk 0:02:10.5]} 16... O-O {[%clk 0:02:33.3]} 17.
Ra3 {[%clk 0:01:38.5]} 17... Qd7 {[%clk 0:02:27.3]} 18. Ng5 {[%clk 0:01:34.3]}
18... h6 {[%clk 0:02:22]} 19. Nh7 {[%clk 0:01:29.4]} 19... Ng6 {[%clk
0:01:34.9]} 20. Bxg6 {[%clk 0:01:22.2]} 20... fxg6 {[%clk 0:01:34.5]} 21. Nxf8
{[%clk 0:01:22.2]} 21... Kxf8 {[%clk 0:01:34.6]} 22. Rxa5 {[%clk 0:01:22.3]} 1-0

[Event "Early-Titled-Tuesday-Blitz-March-12-2024"]
[Site "Chess.com"]
[Date "2024.03.12"]
[Round "6"]
[White "bolwin"]
[Black "toninhojit"]
[Result "0-1"]
[WhiteElo "2255"]
[BlackElo "2538"]
[TimeControl "180+1"]
[EndTime "9:02:56 PDT"]
[Termination "toninhojit won by resignation"]

1. Nf3 {[%clk 0:03:00]} 1... c5 {[%clk 0:02:59.9]} 2. c4 {[%clk 0:03:00.9]} 2...
Nc6 {[%clk 0:03:00.1]} 3. e3 {[%clk 0:03:01.1]} 3... e5 {[%clk 0:02:58.9]} 4.
Nc3 {[%clk 0:02:59.9]} 4... f5 {[%clk 0:02:58.6]} 5. d3 {[%clk 0:02:58.7]} 5...
Nf6 {[%clk 0:02:58.5]} 6. g3 {[%clk 0:02:59.1]} 6... g6 {[%clk 0:02:53.2]} 7.
Bg2 {[%clk 0:03:00]} 7... Bg7 {[%clk 0:02:53.9]} 8. O-O {[%clk 0:03:00]} 8...
O-O {[%clk 0:02:54.5]} 9. a3 {[%clk 0:02:58.8]} 9... d6 {[%clk 0:02:55.1]} 10.
Rb1 {[%clk 0:02:58]} 10... h6 {[%clk 0:02:55.1]} 11. b4 {[%clk 0:02:55.4]} 11...
Rb8 {[%clk 0:02:55.5]} 12. b5 {[%clk 0:02:44.2]} 12... Ne7 {[%clk 0:02:54.6]}
13. d4 {[%clk 0:02:45.1]} 13... cxd4 {[%clk 0:02:50.3]} 14. exd4 {[%clk
0:02:44.9]} 14... e4 {[%clk 0:02:51.2]} 15. Ne1 {[%clk 0:02:39.7]} 15... d5
{[%clk 0:02:51.7]} 16. Bf4 {[%clk 0:02:14.5]} 16... Ra8 {[%clk 0:02:50.2]} 17.
c5 {[%clk 0:02:13.9]} 17... g5 {[%clk 0:02:46.3]} 18. Bd6 {[%clk 0:02:11.6]}
18... Be6 {[%clk 0:02:39.5]} 19. Nc2 {[%clk 0:02:10.8]} 19... Ne8 {[%clk
0:02:36.1]} 20. Bxe7 {[%clk 0:01:56.3]} 20... Qxe7 {[%clk 0:02:37]} 21. Ne3
{[%clk 0:01:56.4]} 21... Rd8 {[%clk 0:02:32.7]} 22. c6 {[%clk 0:01:53.8]} 22...
f4 {[%clk 0:02:32.2]} 23. Nc2 {[%clk 0:01:43.5]} 23... f3 {[%clk 0:02:30.5]} 24.
Bh1 {[%clk 0:01:41.9]} 24... Qf7 {[%clk 0:02:31.1]} 25. Nb4 {[%clk 0:01:35.3]}
25... Qh5 {[%clk 0:02:29.5]} 26. cxb7 {[%clk 0:01:28.9]} 26... Nf6 {[%clk
0:02:29.3]} 27. Nc6 {[%clk 0:01:23.3]} 27... Ng4 {[%clk 0:02:27.9]} 28. h4
{[%clk 0:01:10.8]} 28... gxh4 {[%clk 0:02:27.9]} 29. Ne7+ {[%clk 0:01:00.2]}
29... Kh7 {[%clk 0:02:21.9]} 0-1

[Event "Early-Titled-Tuesday-Blitz-March-12-2024"]
[Site "Chess.com"]
[Date "2024.03.12"]
[Round "6"]
[White "Jimonios"]
[Black "Anton_Demchenko"]
[Result "0-1"]
[WhiteElo "2678"]
[BlackElo "3004"]
[TimeControl "180+1"]
[EndTime "9:03:02 PDT"]
[Termination "Anton_Demchenko won by resignation"]

1. e4 {[%clk 0:03:00.9]} 1... e5 {[%clk 0:02:59.9]} 2. Nf3 {[%clk 0:03:01.2]}
2... Nc6 {[%clk 0:03:00.5]} 3. Bb5 {[%clk 0:03:01.8]} 3... a6 {[%clk 0:03:00.6]}
4. Ba4 {[%clk 0:03:02]} 4... Nge7 {[%clk 0:03:01]} 5. Nc3 {[%clk 0:03:00.5]}
5... d6 {[%clk 0:03:00.5]} 6. d4 {[%clk 0:03:00]} 6... b5 {[%clk 0:02:59.6]} 7.
Bb3 {[%clk 0:03:00]} 7... Nxd4 {[%clk 0:03:00.3]} 8. Nxd4 {[%clk 0:02:53.8]}
8... exd4 {[%clk 0:03:01.2]} 9. Nd5 {[%clk 0:02:46.6]} 9... c5 {[%clk
0:03:01.1]} 10. c4 {[%clk 0:01:18.9]} 10... Nxd5 {[%clk 0:02:57.3]} 11. exd5
{[%clk 0:01:11.7]} 11... Qe7+ {[%clk 0:02:54.8]} 12. Kd2 {[%clk 0:01:09.5]}
12... Qg5+ {[%clk 0:02:52]} 13. Ke2 {[%clk 0:01:07.2]} 13... Qxg2 {[%clk
0:02:48]} 14. Qg1 {[%clk 0:01:01.4]} 14... Bg4+ {[%clk 0:02:24.4]} 15. Kd2
{[%clk 0:00:56.8]} 15... Qxg1 {[%clk 0:02:16.9]} 16. Rxg1 {[%clk 0:00:56.9]}
16... Bf5 {[%clk 0:02:17.6]} 17. cxb5 {[%clk 0:00:36]} 17... axb5 {[%clk
0:02:17.4]} 18. Kd1 {[%clk 0:00:36]} 18... Be7 {[%clk 0:02:14.5]} 19. Rxg7
{[%clk 0:00:34.6]} 19... Bg6 {[%clk 0:02:14.8]} 20. Bf4 {[%clk 0:00:22.2]} 20...
c4 {[%clk 0:02:09.5]} 21. Bc2 {[%clk 0:00:20.5]} 21... d3 {[%clk 0:02:10.2]} 0-1